bitfinex-derivatives/quotes_SOLF0:USTF0_20240930
["timestamp","ask_amount","ask_price","bid_price","bid_amount"]
[1727689792444,3.2087,155.81,155.78,3.209]
[1727689792738,3.2087,155.81,155.78,11.099]
[1727689793243,7.89,155.83,155.78,7.89]
[1727689793445,7.89,155.83,155.77,7.89]
[1727689793742,3.2095,155.76,155.75,0.12502]
[1727689794049,7.89,155.78,155.75,0.12502]
[1727689794234,7.89,155.79,155.75,0.12502]
[1727689794438,3.2094,155.77,155.75,0.12502]
[1727689795243,3.2095,155.76,155.75,0.12502]
[1727689796442,7.89,155.79,155.75,0.12502]
[1727689796643,3.2095,155.77,155.75,0.12502]
[1727689797046,3.2095,155.76,155.75,0.12502]
[1727689797646,11.0995,155.76,155.75,0.12502]
[1727689805555,3.2108,155.7,155.69,0.12502]
[1727689806252,11.1008,155.7,155.69,0.12502]
[1727689807047,3.2108,155.7,155.69,0.12502]
[1727689807755,3.2106,155.71,155.69,0.12502]
[1727689808059,7.89,155.72,155.69,0.12502]
[1727689808458,3.2107,155.71,155.69,0.12502]
[1727689808656,7.89,155.72,155.69,0.12502]
[1727689809862,3.2106,155.71,155.69,0.12502]
[1727689810355,3.2108,155.7,155.69,0.12502]
[1727689812561,3.2106,155.71,155.69,0.12502]
[1727689813464,3.2108,155.7,155.69,0.12502]
[1727689821664,11.1008,155.7,155.69,0.12502]
[1727689826358,3.2108,155.7,155.69,0.12502]
[1727689827272,7.89,155.72,155.69,0.12502]
[1727689827665,2.5876,155.75,155.69,0.12502]
[1727689827666,7.89,155.71,155.69,0.12502]
[1727689828667,3.2108,155.7,155.69,0.12502]
[1727689831174,11.1008,155.7,155.69,0.12502]
[1727689833374,3.2108,155.7,155.69,0.12502]
[1727689834078,7.89,155.71,155.69,0.12502]
[1727689834672,2.5876,155.75,155.69,0.12502]
[1727689834873,7.89,155.72,155.69,0.12502]
[1727689835076,3.2107,155.71,155.69,0.12502]
[1727689837374,3.2108,155.7,155.69,0.12502]
[1727689839976,11.1008,155.7,155.69,0.12502]
[1727689841372,3.2117,155.66,155.63,1.41232]
[1727689841570,11.1017,155.66,155.63,1.41232]
[1727689841780,11.1017,155.66,155.63,0.12502]
[1727689842183,7.89,155.66,155.63,0.12502]
[1727689842383,3.212,155.65,155.63,0.12502]
[1727689842890,11.1017,155.66,155.63,0.12502]
[1727689843689,3.2117,155.66,155.63,8.01502]
[1727689844688,3.2114,155.67,155.63,8.01502]
[1727689845081,2.71262,155.75,155.64,7.89]
[1727689845390,3.2109,155.7,155.65,7.89]
[1727689845578,3.2109,155.7,155.66,3.2115]
[1727689845782,3.2109,155.7,155.67,7.89]
[1727689847680,3.211,155.69,155.67,7.89]
[1727689848492,3.211,155.69,155.66,11.1015]
[1727689849291,3.211,155.69,155.66,7.89]
[1727689849495,7.89,155.71,155.65,3.2117]
[1727689849686,3.2113,155.68,155.64,10.4674]
[1727689849893,7.89,155.69,155.64,13.6793]
[1727689851388,3.2114,155.67,155.64,13.6793]
[1727689852202,3.2114,155.67,155.64,10.4674]
[1727689854496,3.2114,155.67,155.64,2.5774]
[1727689855495,7.89,155.69,155.64,2.5774]
[1727689855705,3.2116,155.66,155.64,2.5774]
[1727689856192,3.2116,155.66,155.63,11.22712]
[1727689859294,7.89,155.68,155.63,8.01502]
[1727689859702,7.89,155.66,155.63,0.12502]
[1727689860603,3.212,155.64,155.63,0.12502]
[1727689861998,11.102,155.64,155.63,0.12502]
[1727689865109,3.2132,155.58,155.57,0.12502]
[1727689869709,11.1032,155.58,155.57,0.12502]
[1727689869904,7.89,155.58,155.51,0.12502]
[1727689870109,7.89,155.54,155.51,0.12502]
[1727689870412,3.2145,155.52,155.51,0.12502]
[1727689871016,11.1045,155.52,155.51,0.12502]
[1727689872012,3.2145,155.52,155.51,0.12502]
[1727689872208,3.2142,155.54,155.51,8.01502]
[1727689872407,7.89,155.61,155.52,7.89]
[1727689872617,7.89,155.61,155.51,0.12502]
[1727689872817,7.89,155.61,155.55,7.89]
[1727689873019,7.89,155.6,155.55,7.89]
[1727689873316,3.2132,155.59,155.55,11.1038]
[1727689873510,2.621,155.62,155.53,12.35]
[1727689874705,3.2128,155.61,155.57,3.2134]
[1727689875016,0.12502,155.63,155.55,12.35]
[1727689875212,0.12502,155.63,155.6,3.2128]
[1727689875818,0.12502,155.63,155.59,3.213]
[1727689876410,3.2125,155.62,155.57,3.2134]
[1727689876816,0.12502,155.63,155.55,12.35]
[1727689877016,3.2127,155.61,155.55,12.35]
[1727689877217,0.12502,155.63,155.55,12.35]
[1727689877918,3.2126,155.62,155.57,3.2134]
[1727689878223,0.12502,155.63,155.55,12.35]
[1727689878614,0.12502,155.63,155.59,3.2128]
[1727689878815,0.12502,155.63,155.57,12.35]
[1727689879115,3.2129,155.6,155.56,3.2136]
[1727689879317,0.12502,155.63,155.52,20.57004838]
[1727689879520,0.12502,155.63,155.52,13.7037]
[1727689880140,3.2128,155.61,155.56,3.2135]
[1727689882624,3.2128,155.6,155.56,3.2135]
[1727689883123,12.35,155.62,155.52,1.3537]
[1727689883419,12.35,155.59,155.51,2.76032]
[1727689883611,3.2136,155.57,155.53,3.2141]
[1727689883917,13.6165,155.61,155.51,15.11032]
[1727689884513,3.2131,155.59,155.51,15.11032]
[1727689885123,0.12502,155.63,155.53,12.35]
[1727689885124,12.47502,155.63,155.53,12.35]
[1727689885814,3.2129,155.6,155.56,3.2137]
[1727689886716,12.47502,155.63,155.56,3.2137]
[1727689886917,3.2131,155.59,155.56,3.2137]
[1727689887416,12.47502,155.63,155.56,3.2137]
[1727689887616,3.2129,155.6,155.56,3.2137]
[1727689888523,3.2131,155.59,155.56,3.2137]
[1727689889126,12.47502,155.63,155.53,12.35]
[1727689889335,12.47502,155.63,155.57,3.2133]
[1727689889828,12.47502,155.63,155.56,3.2136]
[1727689890026,12.47502,155.63,155.53,12.35]
[1727689890725,12.47502,155.63,155.55,3.2139]
[1727689890926,3.2132,155.59,155.55,3.2139]
[1727689891530,3.2132,155.59,155.54,3.2139]
[1727689891732,3.2132,155.59,155.53,12.35]
[1727689892027,3.2133,155.58,155.54,3.2139]
[1727689893133,3.2133,155.58,155.55,3.2138]
[1727689895731,3.2133,155.58,155.54,11.1239]
[1727689896130,11.1233,155.58,155.54,3.2139]
[1727689896334,7.91,155.58,155.54,3.2139]
[1727689896532,3.2135,155.57,155.54,3.2139]
[1727689896845,7.91,155.58,155.55,3.2138]
[1727689897030,3.2133,155.58,155.55,3.2138]
[1727689898429,3.2133,155.58,155.54,11.124]
[1727689898629,3.2135,155.57,155.53,7.91]
[1727689898929,7.91,155.57,155.51,10.67032]
[1727689899325,3.2138,155.56,155.51,10.67032]
[1727689899636,7.91,155.55,155.51,5.97492]
[1727689899832,7.91,155.55,155.51,3.33962]
[1727689901136,11.1239,155.55,155.51,3.33962]
[1727689901936,3.2139,155.55,155.51,11.24962]
[1727689902139,3.2136,155.57,155.53,3.2143]
[1727689903231,3.2136,155.57,155.54,3.214]
[1727689903439,3.2133,155.58,155.54,11.124]
[1727689904138,3.2133,155.58,155.55,3.2138]
[1727689904936,11.1231,155.59,155.55,3.2138]
[1727689905336,11.1231,155.59,155.56,3.2136]
[1727689905634,11.1231,155.59,155.54,7.91]
[1727689905939,3.2133,155.58,155.55,3.2137]
[1727689906143,7.91,155.59,155.54,7.91]
[1727689906440,7.91,155.59,155.54,3.214]
[1727689906441,3.2136,155.57,155.54,3.214]
[1727689906733,7.91,155.57,155.52,7.91]
[1727689906930,7.91,155.56,155.51,1.39592]
[1727689907124,3.214,155.55,155.51,4.61052]
[1727689908139,3.2141,155.54,155.51,4.61052]
[1727689908437,3.2141,155.54,155.51,3.33962]
[1727689908638,3.2145,155.52,155.51,0.12502]
[1727689908829,11.1245,155.52,155.51,0.12502]
[1727689917849,3.2147,155.51,155.5,50.0]
[1727689918146,7.91,155.51,155.45,0.12502]
[1727689918332,11.1257,155.46,155.45,0.12502]
[1727689919638,3.2167,155.42,155.39,0.12502]
[1727689919848,7.91,155.42,155.39,0.12502]
[1727689920245,3.2168,155.41,155.39,0.12502]
[1727689921042,1.3343,155.47,155.39,0.12502]
[1727689921239,7.91,155.43,155.39,0.12502]
[1727689921444,7.91,155.41,155.39,0.12502]
[1727689922049,11.1268,155.41,155.39,0.12502]
[1727689922353,7.91,155.41,155.39,0.12502]
[1727689922657,1.3343,155.47,155.39,0.12502]
[1727689922658,11.127,155.4,155.39,0.12502]
[1727689923351,11.127,155.4,155.33,0.12502]
[1727689923352,7.91,155.4,155.33,0.12502]
[1727689923546,0.12502,155.45,155.33,0.12502]
[1727689923547,7.91,155.36,155.33,0.12502]
[1727689924549,7.91,155.36,155.33,3.34332]
[1727689924857,7.91,155.35,155.33,0.12502]
[1727689925457,7.91,155.36,155.33,0.12502]
[1727689925644,1.3479,155.42,155.33,0.12502]
[1727689925645,12.36,155.38,155.33,0.12502]
[1727689926654,12.36,155.41,155.33,0.12502]
[1727689927046,3.2171,155.4,155.36,3.2176]
[1727689927354,3.2171,155.4,155.33,0.12502]
[1727689927557,12.36,155.41,155.33,0.12502]
[1727689927755,3.2172,155.39,155.33,0.12502]
[1727689928153,3.217,155.4,155.36,3.2178]
[1727689928558,2.7117,155.42,155.36,3.2178]
[1727689928751,3.2171,155.4,155.36,3.2178]
[1727689929452,3.2172,155.39,155.33,0.12502]
[1727689929659,3.2172,155.39,155.35,3.2179]
[1727689929964,12.36,155.4,155.33,0.12502]
[1727689930156,3.2175,155.38,155.34,3.218]
[1727689930855,3.2175,155.38,155.35,3.218]
[1727689931158,3.2173,155.39,155.35,3.218]
[1727689931357,12.36,155.4,155.35,3.218]
[1727689931558,3.2175,155.38,155.34,3.2182]
[1727689931855,12.36,155.4,155.33,0.12502]
[1727689932059,3.2177,155.37,155.33,3.34332]
[1727689932253,12.36,155.4,155.33,0.12502]
[1727689932451,12.36,155.38,155.33,0.12502]
[1727689932958,3.28319924,155.4,155.33,0.12502]
[1727689932959,12.36,155.36,155.33,0.12502]
[1727689933155,12.36,155.34,155.18,7.13692716]
[1727689933355,81.88,155.35,155.18,10.4272085]
[1727689933356,70.8239,155.35,155.18,10.4272085]
[1727689933549,12.36,155.31,155.19,12.36]
[1727689933763,75.06846957,155.35,155.21,12.48502]
[1727689934063,12.36,155.34,155.21,12.48502]
[1727689934261,12.36,155.31,155.21,0.12502]
[1727689934455,0.12502,155.33,155.21,12.48502]
[1727689934659,12.48502,155.33,155.26,3.2198]
[1727689935059,12.48502,155.33,155.21,12.48502]
[1727689935357,0.12502,155.33,155.24,12.36]
[1727689935755,3.34342,155.33,155.26,3.2197]
[1727689935951,3.34342,155.33,155.24,12.36]
[1727689935952,0.12502,155.33,155.24,12.36]
[1727689936152,0.12502,155.33,155.26,12.36]
[1727689936864,0.12502,155.33,155.28,3.2194]
[1727689937160,0.12502,155.33,155.26,12.36]
[1727689937555,0.12502,155.33,155.29,3.2191]
[1727689938265,0.12502,155.33,155.3,3.219]
[1727689938860,0.12502,155.33,155.26,12.36]
[1727689939165,0.12502,155.33,155.28,12.36]
[1727689939362,0.12502,155.33,155.29,3.2191]
[1727689939566,0.12502,155.33,155.28,12.36]
[1727689940568,0.12502,155.33,155.3,3.219]
[1727689941156,0.12502,155.33,155.26,12.36]
[1727689941660,0.12502,155.33,155.28,12.36]
[1727689941857,0.12502,155.33,155.31,3.2188]
[1727689942271,0.12502,155.33,155.28,12.36]
[1727689942462,0.12502,155.33,155.31,3.2188]
[1727689943367,0.12502,155.33,155.26,12.36]
[1727689943959,0.12502,155.33,155.3,3.219]
[1727689944366,0.12502,155.33,155.26,12.36]
[1727689944571,0.12502,155.33,155.29,3.2192]
[1727689944760,0.12502,155.33,155.26,12.36]
[1727689945174,0.12502,155.33,155.29,3.2192]
[1727689945578,0.12502,155.33,155.26,12.36]
[1727689945579,0.12502,155.33,155.28,12.36]
[1727689945776,0.12502,155.33,155.32,3.2186]
[1727689946777,0.12502,155.39,155.35,3.2179]
[1727689946966,3.34222,155.39,155.35,3.2179]
[1727689947163,0.12502,155.39,155.34,3.2182]
[1727689948079,3.2176,155.38,155.33,3.2182]
[1727689948272,0.12502,155.39,155.32,13.6123]
[1727689949174,3.34222,155.39,155.34,3.2181]
[1727689949976,3.34222,155.39,155.32,13.6123]
[1727689950273,0.12502,155.39,155.35,3.218]
[1727689951373,0.12502,155.39,155.34,12.36]
[1727689951964,0.12502,155.39,155.35,3.2179]
[1727689952170,0.12502,155.39,155.34,12.36]
[1727689952867,0.12502,155.39,155.36,3.2176]
[1727689953067,0.12502,155.39,155.34,12.36]
[1727689953964,0.12502,155.39,155.37,3.2175]
[1727689956273,0.12502,155.39,155.38,7.91]
[1727689956475,0.12502,155.39,155.38,11.1274]
[1727689958475,3.2162,155.44,155.39,3.217]
[1727689958670,3.2162,155.44,155.4,7.91]
[1727689958880,3.34112,155.45,155.4,7.91]
[1727689959280,3.34112,155.45,155.41,3.2166]
[1727689959682,0.12502,155.45,155.37,1.3374]
[1727689959979,8.03502,155.45,155.39,7.91]
[1727689960371,3.2163,155.44,155.41,11.1267]
[1727689960577,0.12502,155.45,155.41,11.1267]
[1727689960776,3.34102,155.45,155.37,1.3374]
[1727689960974,0.12502,155.45,155.41,7.91]
[1727689961873,0.12502,155.45,155.37,1.3374]
[1727689962073,0.12502,155.45,155.44,7.91]
[1727689962879,0.12502,155.45,155.44,11.1261]
[1727689963379,3.33982,155.51,155.47,3.2154]
[1727689963584,0.12502,155.51,155.44,12.35]
[1727689964179,3.2149,155.5,155.46,3.2157]
[1727689964880,3.2149,155.5,155.44,12.35]
[1727689965079,3.2153,155.48,155.42,12.35]
[1727689965291,0.12502,155.51,155.42,12.35]
[1727689965585,0.12502,155.51,155.45,3.2159]
[1727689965786,3.2152,155.49,155.45,3.2159]
[1727689966280,0.12502,155.51,155.42,12.35]
[1727689966484,3.2153,155.48,155.42,12.35]
[1727689966681,0.12502,155.51,155.42,12.35]
[1727689967187,3.2152,155.49,155.44,3.216]
[1727689967390,0.12502,155.51,155.42,12.35]
[1727689967684,0.12502,155.51,155.44,12.35]
[1727689967877,0.12502,155.51,155.47,12.35]
[1727689968277,0.12502,155.51,155.5,3.2149]
[1727689969880,3.33852,155.57,155.53,3.2141]
[1727689970192,3.33852,155.57,155.5,1.2495]
[1727689970388,0.12502,155.57,155.54,12.35]
[1727689970991,0.12502,155.57,155.51,1.364]
[1727689970992,0.12502,155.57,155.56,15.5637]
[1727689971185,12.35,155.67,155.58,12.35]
[1727689971584,3.212,155.65,155.6,3.2127]
[1727689971779,12.35,155.67,155.58,12.35]
[1727689971986,2.557,155.68,155.58,12.35]
[1727689972193,3.2115,155.67,155.62,3.2124]
[1727689973583,1.2953,155.68,155.62,3.2124]
[1727689973786,4.5065,155.68,155.62,3.2124]
[1727689974786,3.33602,155.69,155.64,3.2118]
[1727689975186,0.12502,155.69,155.65,12.35]
[1727689975592,0.12502,155.69,155.67,12.35]
[1727689976386,0.12502,155.69,155.68,3.2112]
[1727689978785,0.12502,155.69,155.67,15.5613]
[1727689979993,3.2104,155.72,155.67,15.5613]
[1727689980200,3.2104,155.72,155.68,3.2112]
[1727689980889,3.2104,155.72,155.67,15.5613]
[1727689981294,3.2106,155.71,155.67,12.35]
[1727689981593,3.2106,155.71,155.67,15.5613]
[1727689981794,12.35,155.73,155.63,0.12502]
[1727689981995,12.35,155.73,155.64,3.2119]
[1727689982290,3.2113,155.68,155.63,0.12502]
[1727689982496,12.35,155.71,155.63,0.12502]
[1727689982693,12.35,155.69,155.63,0.12502]
[1727689983085,3.212,155.64,155.63,0.12502]
[1727689985294,1.3233,155.68,155.63,0.12502]
[1727689985685,1.3233,155.68,155.64,3.212]
[1727689985883,2.6535,155.7,155.64,3.212]
[1727689986282,2.6535,155.7,155.65,3.2116]
[1727689986487,1.3101,155.7,155.63,12.47502]
[1727689986687,1.3101,155.7,155.63,0.12502]
[1727689987190,3.2115,155.67,155.63,3.33712]
[1727689987397,1.3101,155.7,155.63,0.12502]
[1727689987797,3.2119,155.65,155.63,0.12502]
[1727689988190,1.3101,155.7,155.63,0.12502]
[1727689989690,3.2116,155.67,155.63,3.33722]
[1727689990493,3.2112,155.68,155.64,3.2119]
[1727689990899,1.3101,155.7,155.63,12.47502]
[1727689991094,3.211,155.69,155.63,12.47502]
[1727689991892,1.3101,155.7,155.63,12.47502]
[1727689992088,3.2116,155.66,155.63,0.12502]
[1727689992305,1.3101,155.7,155.63,0.12502]
[1727689993396,3.212,155.65,155.63,0.12502]
[1727689994293,3.2117,155.66,155.63,0.12502]
[1727689995497,3.2117,155.66,155.63,3.33722]
[1727689995898,3.2117,155.66,155.63,0.12502]
[1727689998000,1.3101,155.7,155.63,0.12502]
[1727689998202,3.2115,155.67,155.63,3.33712]
[1727689998599,3.2115,155.67,155.63,0.12502]
[1727689998803,3.2115,155.67,155.64,3.212]
[1727689999198,3.2114,155.68,155.64,3.212]
[1727689999502,1.3101,155.7,155.64,3.212]
[1727690000303,3.2114,155.67,155.64,3.212]
[1727690001197,3.2112,155.68,155.63,0.12502]
[1727690001500,1.3101,155.7,155.63,0.12502]
[1727690001704,3.2119,155.65,155.63,0.12502]
[1727690003609,3.212,155.64,155.63,0.12502]
[1727690006199,12.35,155.67,155.63,0.12502]
[1727690006406,12.35,155.69,155.63,0.12502]
[1727690007309,3.212,155.65,155.63,0.12502]
[1727690007707,1.3101,155.7,155.63,0.12502]
[1727690008107,3.2114,155.67,155.63,0.12502]
[1727690008812,3.2114,155.67,155.65,3.2118]
[1727690009204,3.2112,155.68,155.65,3.2118]
[1727690009610,1.3101,155.7,155.65,3.2118]
[1727690009810,3.2112,155.68,155.65,3.2118]
[1727690010020,1.3101,155.7,155.64,3.2119]
[1727690010814,1.3101,155.7,155.63,0.12502]
[1727690011314,13.6601,155.7,155.63,0.12502]
[1727690011610,12.35,155.68,155.63,0.12502]
[1727690011816,3.212,155.64,155.63,0.12502]
[1727690012413,3.2119,155.65,155.63,0.12502]
[1727690013904,2.5865,155.67,155.63,0.12502]
[1727690013905,3.212,155.64,155.63,0.12502]
[1727690015015,3.2119,155.65,155.63,0.12502]
[1727690015308,13.6601,155.7,155.63,0.12502]
[1727690015513,3.2116,155.67,155.63,3.33712]
[1727690016211,3.2113,155.68,155.64,3.212]
[1727690016512,13.6601,155.7,155.64,3.212]
[1727690016905,13.6601,155.7,155.63,0.12502]
[1727690016906,1.3101,155.7,155.63,0.12502]
[1727690017208,0.12502,155.75,155.68,12.35]
[1727690017614,3.2102,155.73,155.68,15.5611]
[1727690018614,12.35,155.74,155.64,1.238]
[1727690019014,3.2109,155.7,155.66,3.2115]
[1727690019218,12.35,155.74,155.64,1.238]
[1727690019917,12.35,155.74,155.64,3.212]
[1727690020126,12.35,155.72,155.63,0.12502]
[1727690020307,2.6018,155.71,155.63,0.12502]
[1727690020513,3.88,155.71,155.63,0.12502]
[1727690021015,12.35,155.7,155.63,0.12502]
[1727690021626,3.212,155.65,155.63,0.12502]
[1727690022324,3.2119,155.65,155.63,0.12502]
[1727690022826,3.212,155.64,155.63,0.12502]
[1727690023321,3.88,155.71,155.63,0.12502]
[1727690023519,3.2113,155.68,155.64,3.212]
[1727690023817,3.88,155.71,155.63,0.12502]
[1727690024020,3.2111,155.69,155.65,3.2116]
[1727690024220,3.2111,155.69,155.63,0.12502]
[1727690024418,3.88,155.71,155.63,0.12502]
[1727690024619,3.2116,155.66,155.63,0.12502]
[1727690024922,3.88,155.71,155.63,0.12502]
[1727690025318,3.2114,155.68,155.63,3.33712]
[1727690027916,3.2118,155.65,155.63,0.12502]
[1727690028533,3.212,155.64,155.63,0.12502]
[1727690031028,3.2119,155.65,155.63,0.12502]
[1727690031731,3.88,155.71,155.63,0.12502]
[1727690031732,3.212,155.64,155.63,0.12502]
[1727690034127,3.2127,155.61,155.58,3.2132]
[1727690035040,3.2128,155.6,155.57,3.33842]
[1727690035434,12.35,155.63,155.57,0.12502]
[1727690035634,3.2132,155.58,155.57,0.12502]
[1727690036033,12.35,155.63,155.57,0.12502]
[1727690036242,3.2129,155.6,155.57,0.12502]
[1727690036739,2.6246,155.64,155.57,0.12502]
[1727690036945,2.6246,155.64,155.58,3.2132]
[1727690038139,3.2128,155.61,155.57,3.33832]
[1727690039047,5.84272031,155.64,155.57,0.12502]
[1727690039255,13.6514,155.63,155.57,0.12502]
[1727690039848,12.35,155.61,155.57,0.12502]
[1727690040249,3.2132,155.58,155.57,0.12502]
[1727690040452,12.35,155.59,155.51,0.12502]
[1727690040648,1.3549,155.58,155.51,0.12502]
[1727690041152,3.214,155.55,155.51,3.33952]
[1727690041343,3.214,155.55,155.51,0.12502]
[1727690042258,3.214,155.55,155.52,3.2145]
[1727690042952,3.2137,155.56,155.52,3.2145]
[1727690043753,13.77642,155.63,155.53,12.35]
[1727690043955,15.10082,155.63,155.53,12.35]
[1727690044156,3.2134,155.58,155.54,3.2139]
[1727690044455,15.10082,155.63,155.54,3.2139]
[1727690045048,0.12502,155.63,155.57,3.2134]
[1727690045453,0.12502,155.63,155.53,12.35]
[1727690046061,3.2132,155.59,155.56,3.2136]
[1727690046260,12.47502,155.63,155.52,12.35]
[1727690046556,3.2135,155.58,155.54,3.214]
[1727690046963,3.2135,155.58,155.52,12.35]
[1727690047464,3.2136,155.57,155.52,12.35]
[1727690047659,12.35,155.61,155.52,12.35]
[1727690047964,1.2498,155.6,155.52,3.2144]
[1727690048157,3.2139,155.56,155.52,3.2144]
[1727690048380,1.2739,155.59,155.52,3.2144]
[1727690048561,1.2739,155.59,155.55,12.35]
[1727690048865,0.12502,155.63,155.55,12.35]
[1727690049168,3.2125,155.62,155.55,12.35]
[1727690049861,3.2125,155.62,155.57,3.2134]
[1727690050255,3.2126,155.61,155.57,3.2134]
[1727690051471,0.12502,155.63,155.55,12.35]
[1727690052663,0.12502,155.63,155.57,12.35]
[1727690053274,0.12502,155.63,155.59,12.35]
[1727690054372,0.12502,155.63,155.6,3.2127]
[1727690055874,0.12502,155.63,155.62,3.2124]
[1727690056366,0.12502,155.63,155.59,12.35]
[1727690056567,0.12502,155.63,155.61,3.2126]
[1727690057465,0.12502,155.63,155.59,12.35]
[1727690057466,0.12502,155.63,155.6,3.2128]
[1727690058971,0.12502,155.63,155.54,10.02299139]
[1727690058972,0.12502,155.63,155.57,12.35]
[1727690059164,3.2124,155.62,155.58,3.2131]
[1727690059369,15.59739285,155.62,155.43,6.4326]
[1727690059676,15.59739285,155.62,155.54,3.2139]
[1727690059677,3.2133,155.58,155.54,3.2139]
[1727690061079,3.9091,155.61,155.54,3.2139]
[1727690061474,16.2591,155.61,155.54,3.2139]
[1727690061665,3.2134,155.58,155.54,3.2139]
[1727690062275,3.2134,155.58,155.55,3.2138]
[1727690062470,16.2591,155.61,155.55,3.2138]
[1727690062671,3.2131,155.59,155.55,3.2138]
[1727690062971,16.2591,155.61,155.55,3.2138]
[1727690063180,3.2133,155.58,155.55,3.2138]
[1727690063375,16.2591,155.61,155.55,3.2138]
[1727690064278,3.2132,155.59,155.55,3.2138]
[1727690064481,16.2591,155.61,155.54,3.2141]
[1727690064781,16.2591,155.61,155.49,12.35]
[1727690064985,12.35,155.59,155.49,12.35]
[1727690065187,12.35,155.59,155.52,3.2144]
[1727690065371,3.2138,155.56,155.49,12.35]
[1727690065575,12.35,155.59,155.49,12.35]
[1727690065882,12.35,155.59,155.53,3.2141]
[1727690066174,3.2136,155.57,155.53,3.2141]
[1727690066776,3.2139,155.56,155.53,3.2141]
[1727690069883,3.2135,155.57,155.49,12.35]
[1727690070383,3.2132,155.59,155.52,12.35]
[1727690070580,16.2591,155.61,155.52,12.35]
[1727690070981,3.2133,155.58,155.56,3.2136]
[1727690071176,16.2591,155.61,155.56,3.2136]
[1727690071884,3.2132,155.59,155.56,3.2136]
[1727690072379,16.2591,155.61,155.56,3.2136]
[1727690072783,1.3183,155.61,155.52,12.35]
[1727690072977,1.3183,155.61,155.57,3.2134]
[1727690073282,3.213,155.6,155.57,3.2134]
[1727690074082,3.213,155.6,155.54,12.35]
[1727690074083,3.2127,155.61,155.54,12.35]
[1727690074481,0.12502,155.63,155.54,15.61269138]
[1727690074682,0.12502,155.63,155.56,12.35]
[1727690074980,3.2125,155.62,155.56,12.35]
[1727690075385,3.2125,155.62,155.58,3.2131]
[1727690076383,3.2125,155.62,155.56,12.35]
[1727690076575,3.2125,155.62,155.59,3.2129]
[1727690077283,0.12502,155.63,155.62,3.2124]
[1727690077581,0.12502,155.69,155.61,12.35]
[1727690077796,0.12502,155.69,155.63,12.35]
[1727690078085,3.33612,155.69,155.65,3.2117]
[1727690078679,3.2112,155.68,155.65,3.2117]
[1727690078878,3.2112,155.68,155.64,3.2119]
[1727690079079,3.2114,155.67,155.64,3.2119]
[1727690079585,0.12502,155.69,155.63,12.35]
[1727690079792,0.12502,155.69,155.65,3.2117]
[1727690080287,3.33612,155.69,155.65,3.2117]
[1727690080881,3.2112,155.68,155.65,3.2117]
[1727690081484,3.2112,155.68,155.63,12.35]
[1727690081678,3.2112,155.68,155.64,3.212]
[1727690081886,3.2114,155.67,155.64,3.212]
[1727690082979,3.2113,155.68,155.65,3.2118]
[1727690083691,3.33602,155.69,155.66,3.2116]
[1727690083991,0.12502,155.69,155.63,12.35]
[1727690084490,3.2113,155.68,155.65,3.2116]
[1727690085410,0.12502,155.69,155.63,12.35]